fUST/lending_fUST_20250810
["ID","MTS","AMOUNT","RATE_DAILY","PERIOD"]
[378167514,1754759441774,-500.0,0.00021549,2]
[378167515,1754759441783,-464.14794819,0.00021549,2]
[378167516,1754759441793,-460.0,0.00021549,2]
[378167517,1754759441803,-460.0,0.00021549,2]
[378167518,1754759441812,-460.0,0.00021549,2]
[378167519,1754759441821,-460.0,0.00021549,2]
[378167520,1754759441831,-460.0,0.00021549,2]
[378167521,1754759441840,-460.0,0.00021549,2]
[378167522,1754759441850,-460.0,0.00021549,2]
[378167523,1754759441859,-460.0,0.00021549,2]
[378167524,1754759441868,-460.0,0.00021549,2]
[378167525,1754759441878,-460.0,0.00021549,2]
[378167526,1754759441887,-575.80887632,0.00021549,2]
[378167527,1754759441897,-460.0,0.00021549,2]
[378167528,1754759441907,-460.0,0.00021549,2]
[378167529,1754759441916,-460.0,0.00021549,2]
[378167530,1754759441926,-460.0,0.00021549,2]
[378167531,1754759441937,-460.0,0.00021549,2]
[378167532,1754759441947,-460.0,0.00021549,2]
[378167533,1754759441956,-460.0,0.00021549,2]
[378167534,1754759441965,-460.0,0.00021549,2]
[378167535,1754759441975,-460.0,0.00021549,2]
[378167536,1754759441984,-460.0,0.00021549,2]
[378167537,1754759441994,-460.0,0.00021549,2]
[378167538,1754759442003,-460.0,0.00021549,2]
[378167539,1754759442013,-460.0,0.00021549,2]
[378167540,1754759442022,-461.63272166,0.00021549,2]
[378167541,1754759442031,-460.0,0.00021549,2]
[378167542,1754759442041,-460.0,0.00021549,2]
[378167543,1754759442051,-460.89175647,0.00021549,2]
[378167544,1754759442061,-460.0,0.00021549,2]
[378167545,1754759442070,-513.29925806,0.00021549,2]
[378167546,1754759442080,-460.0,0.00021549,2]
[378167547,1754759442090,-460.0,0.00021549,2]
[378167548,1754759442099,-468.64917723,0.00021549,2]
[378167549,1754759442108,-460.0,0.00021549,2]
[378167550,1754759442117,-460.0,0.00021549,2]
[378167551,1754759442127,-460.0,0.00021549,2]
[378167552,1754759442136,-460.0,0.00021549,2]
[378167553,1754759442145,-460.0,0.00021549,2]
[378167554,1754759442155,-460.0,0.00021549,2]
[378167555,1754759442164,-460.0,0.00021549,2]
[378167556,1754759442173,-460.0,0.00021549,2]
[378167557,1754759442182,-464.24175177,0.00021549,2]
[378167558,1754759442193,-460.0,0.00021549,2]
[378167559,1754759442203,-460.0,0.00021549,2]
[378167560,1754759442212,-460.0,0.00021549,2]
[378167561,1754759442221,-460.0,0.00021549,2]
[378167562,1754759442230,-460.0,0.00021549,2]
[378167563,1754759442240,-460.0,0.00021549,2]
[378167564,1754759442249,-460.0,0.00021549,2]
[378167565,1754759442258,-460.0,0.00021549,2]
[378167566,1754759442393,-460.0,0.00021549,2]
[378167567,1754759442404,-460.0,0.00021549,2]
[378167568,1754759442414,-467.26627834,0.00021549,2]
[378167569,1754759442424,-460.0,0.00021549,2]
[378167570,1754759442433,-460.0,0.00021549,2]
[378167571,1754759442443,-460.0,0.00021549,2]
[378167572,1754759442452,-460.0,0.00021549,2]
[378167573,1754759442462,-467.37708738,0.00021549,2]
[378167574,1754759442471,-460.0,0.00021549,2]
[378167575,1754759442481,-500.0,0.00021549,2]
[378167576,1754759442491,-460.0,0.00021549,2]
[378167577,1754759442500,-460.0,0.00021549,2]
[378167578,1754759442510,-460.0,0.00021549,2]
[378167579,1754759442520,-462.24102628,0.00021549,2]
[378167580,1754759442529,-460.0,0.00021549,2]
[378167581,1754759442539,-500.0,0.00021549,2]
[378167582,1754759442548,-460.0,0.00021549,2]
[378167583,1754759442559,-460.0,0.00021549,2]
[378167584,1754759442568,-500.0,0.00021549,2]
[378167585,1754759442580,-460.0,0.0002155,2]
[378167586,1754759442590,-460.94049731,0.0002155,2]
[378167587,1754759442599,-460.0,0.0002155,2]
[378167588,1754759442609,-460.0,0.0002155,2]
[378167589,1754759442618,-500.0,0.0002155,2]
[378167590,1754759442628,-462.74087877,0.0002155,2]
[378167591,1754759442637,-460.0,0.0002155,2]
[378167592,1754759442647,-460.0,0.0002155,2]
[378167593,1754759442657,-460.0,0.0002155,2]
[378167594,1754759442667,-460.0,0.0002155,2]
[378167595,1754759442677,-460.0,0.0002155,2]
[378167596,1754759442686,-460.0,0.0002155,2]
[378167597,1754759442695,-590.87,0.0002155,2]
[378167598,1754759442705,-460.0,0.0002155,2]
[378167599,1754759442715,-460.0,0.0002155,2]
[378167600,1754759442725,-460.36624562,0.0002155,2]
[378167601,1754759442735,-460.0,0.0002155,2]
[378167602,1754759442744,-463.78801281,0.0002155,2]
[378167603,1754759442755,-460.0,0.0002155,2]
[378167604,1754759442765,-462.21852581,0.0002155,2]
[378167605,1754759442775,-460.0,0.0002155,2]
[378167606,1754759442784,-460.0,0.0002155,2]
[378167607,1754759442793,-460.0,0.0002155,2]
[378167608,1754759442803,-460.0,0.0002155,2]
[378167609,1754759442812,-475.52,0.0002155,2]
[378167610,1754759442822,-460.0,0.0002155,2]
[378167611,1754759442831,-460.0,0.0002155,2]
[378167612,1754759442840,-460.0,0.0002155,2]
[378167613,1754759442850,-460.0,0.0002155,2]
[378167614,1754759442859,-460.0,0.0002155,2]
[378167615,1754759442869,-500.0,0.0002155,2]
[378167616,1754759442878,-180.64454354,0.0002155,2]
[378167617,1754759442888,-460.0,0.0002155,2]
[378167618,1754759442898,-500.0,0.00021579,2]
[378167619,1754759442907,-2073.96952208,0.00021586,2]
[378167620,1754759442916,-500.0,0.00021654,2]
[378167621,1754759442926,-6158.21330624,0.00021655,2]
[378167622,1754759442936,-500.0,0.00021672,2]
[378167624,1754759442945,-500.0,0.00021721,2]
[378167625,1754759442955,-460.0,0.00021722,2]
[378167626,1754759442964,-460.0,0.00021722,2]
[378167627,1754759442973,-460.0,0.00021722,2]
[378167628,1754759442983,-500.0,0.00021722,2]
[378167629,1754759442992,-500.0,0.00021722,2]
[378167630,1754759443001,-500.0,0.00021722,2]
[378167631,1754759443010,-500.0,0.00021722,2]
[378167632,1754759443019,-205.2,0.00021722,2]
[378167633,1754759443029,-500.0,0.00021722,2]
[378167634,1754759443038,-500.0,0.00021722,2]
[378167635,1754759443048,-500.0,0.00021722,2]
[378167636,1754759443057,-500.0,0.00021722,2]
[378167638,1754759443066,-500.0,0.00021722,2]
[378167639,1754759443075,-500.0,0.00021722,2]
[378167640,1754759443085,-500.0,0.00021722,2]
[378167641,1754759443094,-500.0,0.00021722,2]
[378167642,1754759443103,-500.0,0.00021722,2]
[378167643,1754759443113,-500.0,0.00021722,2]
[378167644,1754759443122,-500.0,0.00021722,2]
[378167646,1754759443132,-500.0,0.00021722,2]
[378167647,1754759443141,-500.0,0.00021722,2]
[378167648,1754759443150,-500.0,0.00021722,2]
[378167649,1754759443160,-500.0,0.00021722,2]
[378167650,1754759443169,-500.0,0.00021722,2]
[378167651,1754759443179,-500.0,0.00021722,2]
[378167652,1754759443188,-500.0,0.00021722,2]
[378167653,1754759443197,-500.0,0.00021722,2]
[378167654,1754759443206,-500.0,0.00021722,2]
[378167655,1754759443215,-388.68542664,0.00021722,2]
[378167656,1754759443224,-500.0,0.00021722,2]
[378167657,1754759443234,-506.25,0.00021722,2]
[378167658,1754759443242,-506.25,0.00021722,2]
[378167659,1754759443252,-506.25,0.00021722,2]
[378167660,1754759443261,-506.25,0.00021722,2]
[378167661,1754759443271,-506.25,0.00021722,2]
[378167662,1754759443280,-506.25,0.00021722,2]
[378167663,1754759443289,-506.25,0.00021722,2]
[378167664,1754759443299,-506.25,0.00021722,2]
[378167665,1754759443308,-2073.96952208,0.00021723,2]
[378167666,1754759443318,-279248.00651878,0.00021723,2]
[378167667,1754759443326,-1203.00614049,0.00021767,2]
[378167668,1754759443336,-500.0,0.00021773,2]
[378167669,1754759443345,-3934.95767155,0.00021812,2]
[378167670,1754759443354,-460.0,0.0002182,2]
[378167671,1754759443363,-1819.62,0.0002182,2]
[378167672,1754759443372,-460.0,0.0002182,2]
[378167673,1754759443382,-460.0,0.0002182,2]
[378167674,1754759443391,-460.0,0.0002182,2]
[378167675,1754759443401,-1097.66,0.0002182,2]
[378167676,1754759443411,-460.0,0.0002182,2]
[378167677,1754759443420,-460.0,0.0002182,2]
[378167678,1754759443430,-460.0,0.0002182,2]
[378167679,1754759443439,-738.0,0.0002182,2]
[378167680,1754759443448,-460.0,0.0002182,2]
[378167681,1754759443459,-1182.7,0.0002182,2]
[378167682,1754759443469,-460.0,0.0002182,2]
[378167683,1754759443479,-460.0,0.0002182,2]
[378167684,1754759443489,-414.99576239,0.0002182,2]
[378167685,1754759443499,-460.0,0.0002182,2]
[378167686,1754759443509,-460.0,0.0002182,2]
[378167687,1754759443519,-460.0,0.0002182,2]
[378167689,1754759443528,-460.0,0.0002182,2]
[378167691,1754759443538,-460.0,0.0002182,2]
[378167693,1754759443547,-460.0,0.0002182,2]
[378167694,1754759443555,-460.0,0.00021821,2]
[378167696,1754759443564,-231.67655216,0.00021821,2]
[378167698,1754759443574,-468.72,0.00021821,2]
[378167701,1754759443588,-460.0,0.00021821,2]
[378167703,1754759443597,-462.56434984,0.00021821,2]
[378167705,1754759443607,-161.84485016,0.00021821,2]
[378167707,1754759443616,-460.0,0.00021821,2]
[378167709,1754759443626,-460.0,0.00021821,2]
[378167711,1754759443636,-460.0,0.00021821,2]
[378167713,1754759443646,-460.0,0.00021821,2]
[378167715,1754759443656,-460.0,0.00021821,2]
[378167717,1754759443665,-460.0,0.00021821,2]
[378167719,1754759443674,-460.0,0.00021821,2]
[378167721,1754759443683,-463.21938518,0.00021821,2]
[378167723,1754759443693,-435.96744051,0.00021821,2]
[378167725,1754759443703,-460.0,0.00021821,2]
[378167726,1754759443714,-460.0,0.00021821,2]
[378167728,1754759443723,-460.0,0.00021821,2]
[378167731,1754759443734,-392.20362504,0.00021821,2]
[378167733,1754759443744,-388.95302422,0.00021821,2]
[378167735,1754759443754,-460.0,0.00021821,2]
[378167737,1754759443763,-460.0,0.00021821,2]
[378167739,1754759443773,-460.0,0.00021821,2]
[378167741,1754759443783,-463.75473631,0.00021821,2]
[378167743,1754759443792,-460.0,0.00021821,2]
[378167745,1754759443801,-361.22697587,0.00021821,2]
[378167748,1754759443810,-460.0,0.00021821,2]
[378167750,1754759443820,-460.0,0.00021821,2]
[378167752,1754759443830,-460.0,0.00021821,2]
[378167755,1754759443839,-460.0,0.00021821,2]
[378167756,1754759443848,-460.0,0.00021821,2]
[378167758,1754759443858,-460.0,0.00021821,2]
[378167759,1754759443867,-460.0,0.00021821,2]
[378167760,1754759443876,-460.0,0.00021821,2]
[378167761,1754759443886,-523.84,0.00021821,2]
[378167762,1754759443895,-460.0,0.00021821,2]
[378167764,1754759443904,-460.0,0.00021821,2]
[378167767,1754759443914,-465.71003443,0.00021821,2]
[378167769,1754759443923,-460.0,0.00021821,2]
[378167770,1754759443933,-460.0,0.00021821,2]
[378167771,1754759443942,-460.0,0.00021821,2]
[378167773,1754759443952,-460.0,0.00021821,2]
[378167774,1754759443961,-460.0,0.00021821,2]
[378167775,1754759443971,-460.0,0.00021821,2]
[378167776,1754759443980,-460.0,0.00021821,2]
[378167777,1754759443990,-460.0,0.00021821,2]
[378167778,1754759443999,-460.0,0.00021821,2]
[378167780,1754759444009,-460.0,0.00021821,2]
[378167781,1754759444018,-1355.07,0.00021821,2]
[378167783,1754759444028,-460.0,0.00021821,2]
[378167785,1754759444037,-460.0,0.00021821,2]
[378167787,1754759444047,-460.0,0.00021821,2]
[378167788,1754759444056,-460.0,0.00021821,2]
[378167790,1754759444066,-460.0,0.00021821,2]
[378167791,1754759444075,-460.0,0.00021821,2]
[378167792,1754759444085,-460.0,0.00021821,2]
[378167793,1754759444094,-460.0,0.00021821,2]
[378167794,1754759444103,-460.0,0.00021821,2]
[378167795,1754759444114,-460.0,0.00021821,2]
[378167796,1754759444124,-460.0,0.00021821,2]
[378167797,1754759444134,-460.0,0.00021821,2]
[378167798,1754759444144,-460.0,0.00021821,2]
[378167799,1754759444153,-460.0,0.00021821,2]
[378167800,1754759444163,-460.0,0.00021821,2]
[378167801,1754759444172,-460.0,0.00021821,2]
[378167802,1754759444182,-460.0,0.00021821,2]
[378167803,1754759444192,-460.0,0.00021821,2]
[378167804,1754759444201,-408.00160872,0.00021821,2]
[378167805,1754759444210,-199.52,0.00021821,2]
[378167806,1754759444220,-460.0,0.00021821,2]
[378167807,1754759444229,-460.0,0.00021821,2]
[378167808,1754759444238,-460.0,0.00021821,2]
[378167809,1754759444248,-545.23,0.00021821,2]
[378167810,1754759444259,-515.91,0.00021821,2]
[378167811,1754759444269,-460.0,0.00021821,2]
[378167812,1754759444278,-460.0,0.00021821,2]
[378167813,1754759444287,-328.87287238,0.00021821,2]
[378167814,1754759444297,-460.0,0.00021821,2]
[378167815,1754759444306,-460.0,0.00021821,2]
[378167816,1754759444315,-460.0,0.00021821,2]
[378167817,1754759444325,-460.0,0.00021821,2]
[378167818,1754759444336,-460.0,0.00021821,2]
[378167819,1754759444346,-460.0,0.00021821,2]
[378167820,1754759444356,-460.0,0.00021821,2]
[378167821,1754759444366,-460.0,0.00021821,2]
[378167822,1754759444375,-460.0,0.00021821,2]
[378167823,1754759444384,-460.0,0.00021821,2]
[378167824,1754759444394,-460.0,0.00021821,2]
[378167825,1754759444403,-460.0,0.00021821,2]
[378167826,1754759444412,-491.15,0.00021821,2]
[378167828,1754759444422,-186.7298308,0.00021821,2]
[378167830,1754759444431,-460.0,0.00021822,2]
[378167832,1754759444440,-371.44,0.00021822,2]
[378167834,1754759444450,-460.0,0.00021822,2]
[378167836,1754759444459,-460.0,0.00021822,2]
[378167837,1754759444469,-460.0,0.00021822,2]
[378167838,1754759444478,-460.0,0.00021822,2]
[378167839,1754759444487,-460.0,0.00021822,2]
[378167840,1754759444496,-460.0,0.00021822,2]
[378167841,1754759444505,-460.0,0.00021822,2]
[378167842,1754759444515,-465.03,0.00021822,2]
[378167843,1754759444524,-460.0,0.00021822,2]
[378167844,1754759444533,-460.0,0.00021822,2]
[378167845,1754759444542,-293.32476617,0.00021822,2]
[378167846,1754759444552,-736.53,0.00021822,2]
[378167847,1754759444561,-460.0,0.00021822,2]
[378167848,1754759444570,-491.9,0.00021822,2]
[378167849,1754759444584,-460.0,0.00021822,2]
[378167850,1754759444593,-460.0,0.00021822,2]
[378167851,1754759444603,-460.0,0.00021822,2]
[378167852,1754759444613,-988.51,0.00021822,2]
[378167853,1754759444622,-3001.62,0.00021822,2]
[378167854,1754759444632,-1359.96,0.00021822,2]
[378167855,1754759444641,-1046.21,0.00021822,2]
[378167856,1754759444651,-773.32,0.00021822,2]
[378167857,1754759444661,-460.0,0.00021822,2]
[378167858,1754759444673,-460.0,0.00021822,2]
[378167859,1754759444683,-462.27098255,0.00021822,2]
[378167860,1754759444694,-1240.26,0.00021822,2]
[378167861,1754759444703,-957.18,0.00021822,2]
[378167862,1754759444714,-460.0,0.00021822,2]
[378167863,1754759444724,-460.0,0.00021822,2]
[378167864,1754759444733,-460.0,0.00021822,2]
[378167865,1754759444743,-473.0,0.00021822,2]
[378167866,1754759444752,-460.0,0.00021822,2]
[378167867,1754759444762,-892.31,0.00021822,2]
[378167868,1754759444771,-460.0,0.00021823,2]
[378167869,1754759444781,-460.0,0.00021823,2]
[378167870,1754759444790,-477.72789882,0.00021823,2]
[378167871,1754759444800,-460.0,0.00021823,2]
[378167872,1754759444809,-460.0,0.00021823,2]
[378167873,1754759444818,-460.0,0.00021823,2]
[378167874,1754759444828,-460.0,0.00021823,2]
[378167875,1754759444838,-460.0,0.00021823,2]
[378167876,1754759444847,-460.0,0.00021823,2]
[378167877,1754759444856,-460.0,0.00021823,2]
[378167878,1754759444866,-467.67303426,0.00021823,2]
[378167879,1754759444875,-460.0,0.00021823,2]
[378167880,1754759444885,-460.0,0.00021823,2]
[378167881,1754759444895,-460.0,0.00021823,2]
[378167882,1754759444905,-460.0,0.00021823,2]
[378167883,1754759444914,-460.0,0.00021823,2]
[378167884,1754759444925,-460.0,0.00021823,2]
[378167885,1754759444934,-460.0,0.00021823,2]
[378167886,1754759444944,-460.0,0.00021823,2]
[378167887,1754759444954,-460.0,0.00021823,2]
[378167888,1754759444963,-460.0,0.00021823,2]
[378167889,1754759444973,-460.0,0.00021823,2]
[378167890,1754759444984,-460.0,0.00021823,2]
[378167891,1754759444994,-460.0,0.00021823,2]
[378167892,1754759445003,-460.0,0.00021823,2]
[378167893,1754759445013,-460.0,0.00021823,2]
[378167894,1754759445022,-220.74155376,0.00021823,2]
[378167895,1754759445032,-460.0,0.00021823,2]
[378167896,1754759445041,-460.0,0.00021823,2]
[378167897,1754759445051,-172.41379316,0.00021823,2]
[378167898,1754759445061,-460.0,0.00021823,2]
[378167899,1754759445070,-460.0,0.00021823,2]
[378167900,1754759445080,-460.0,0.00021823,2]
[378167901,1754759445089,-460.0,0.00021823,2]
[378167902,1754759445099,-460.0,0.00021823,2]
[378167903,1754759445108,-455.60707001,0.00021823,2]
[378167904,1754759445117,-460.0,0.00021823,2]
[378167905,1754759445127,-460.0,0.00021823,2]
[378167906,1754759445136,-460.0,0.00021823,2]
[378167907,1754759445145,-460.0,0.00021823,2]
[378167908,1754759445155,-500.0,0.00021823,2]
[378167909,1754759445165,-458.4091299,0.00021823,2]
[378167910,1754759445174,-460.0,0.00021823,2]
[378167911,1754759445183,-460.0,0.00021823,2]
[378167912,1754759445192,-500.0,0.00021824,2]
[378167913,1754759445202,-460.0,0.00021824,2]
[378167914,1754759445211,-460.0,0.00021824,2]
[378167915,1754759445220,-590.87,0.00021824,2]
[378167916,1754759445230,-394.24133916,0.00021824,2]
[378167917,1754759445239,-460.0,0.00021824,2]
[378167918,1754759445248,-214.77962662,0.00021824,2]
[378167919,1754759445258,-474.7,0.00021824,2]
[378167920,1754759445267,-460.0,0.00021824,2]
[378167921,1754759445392,-523.01687562,0.00021824,2]
[378167922,1754759445403,-500.0,0.00021824,2]
[378167923,1754759445413,-2073.96952208,0.00021859,2]
[378167924,1754759445423,-500.0,0.00021873,2]
[378167925,1754759445432,-500.0,0.00021873,2]
[378167926,1754759445441,-502.37147298,0.00021873,2]
[378167927,1754759445450,-500.0,0.00021873,2]
[378167928,1754759445460,-332.46060549,0.00021873,2]
[378167929,1754759445470,-500.0,0.00021917,2]
[378167930,1754759445479,-320.0,0.00021918,2]
[378167931,1754759445489,-150.874442,0.00021949,14]
[378167932,1754759445498,-200.0,0.0002197,15]
[378167933,1754759445508,-200.0,0.0002197,15]
[378167934,1754759445518,-200.0,0.0002197,15]
[378167935,1754759445528,-200.0,0.0002197,15]
[378167936,1754759445538,-200.0,0.0002197,15]
[378167937,1754759445547,-462.19098661,0.00021973,2]
[378167938,1754759445556,-500.0,0.00021973,2]
[378167939,1754759445566,-600.0,0.00021973,2]
[378167940,1754759445576,-500.0,0.00021973,2]
[378167941,1754759445589,-507.99762055,0.00021973,2]
[378167942,1754759445599,-500.0,0.00021973,2]
[378167943,1754759445608,-500.0,0.00021973,2]
[378167944,1754759445618,-500.0,0.00021973,2]
[378167945,1754759445628,-20613.16805078,0.0002199,2]
[378167946,1754759445816,-298.46039219,0.00021538,10]
[378167947,1754759445828,-525.76960781,0.00021538,10]
[378167948,1754759445838,-602.62,0.00021546,2]
[378167949,1754759445848,-392.61039219,0.0002182,2]
[378167957,1754759446669,-460.0,0.00021547,2]
[378167958,1754759446680,-210.00960781,0.0002182,2]
[378167959,1754759446690,-460.0,0.00021821,2]
[378167960,1754759446699,-518.27264194,0.0002199,2]
[378167961,1754759446779,-372.9242503,0.0002199,2]
[378167962,1754759482538,150.0,0.00023406,30]
[378167963,1754759483001,150.0,0.00024521,30]
[378167964,1754759483512,150.0,0.00025635,30]
[378167965,1754759483843,150.0,0.0002675,30]
[378167966,1754759542664,802.00409366,0.00019722,2]
[378167968,1754759555958,150.0,0.00023862,30]
[378167969,1754759556383,150.0,0.00024998,30]
[378167970,1754759570726,422.753614,0.00013699,2]
[378167971,1754759570960,422.753614,0.00020187,2]
[378167973,1754759597377,14354.37897379,0.00021447,2]
[378167974,1754759597399,20000.0,0.00021447,2]
[378167975,1754759597421,20000.0,0.00021447,2]
[378167976,1754759597442,20000.0,0.00021447,2]
[378167977,1754759597462,20000.0,0.00021447,2]
[378167978,1754759597482,20000.0,0.00021447,2]
[378167979,1754759597503,20000.0,0.00021447,2]
[378167980,1754759597524,20000.0,0.00021447,2]
[378167981,1754759597545,20000.0,0.00021447,2]
[378167982,1754759597567,20000.0,0.00021447,2]
[378167983,1754759597588,20000.0,0.00021447,2]
[378167984,1754759597610,20000.0,0.00021447,2]
[378167985,1754759597632,20000.0,0.00021447,2]
[378167986,1754759597657,20000.0,0.00021447,2]
[378167987,1754759597678,20000.0,0.00021447,2]
[378167988,1754759597699,20000.0,0.00021447,2]
[378167989,1754759597721,20000.0,0.00021447,2]
[378167990,1754759597742,20000.0,0.00021447,2]
[378167991,1754759597763,15645.62102621,0.00021447,2]
[378167992,1754759603858,4354.37897379,0.000199,2]
[378167993,1754759603882,2653.6658543,0.000199,2]
[378167994,1754759607384,17346.3341457,0.00020591,2]
[378167995,1754759607407,7553.6658543,0.00020591,2]
[378167996,1754759612799,5000.0,0.00021512,2]
[378168003,1754759621096,5000.0,0.00021512,2]
[378168004,1754759628604,150.0,0.00025062,30]
[378168005,1754759630046,2446.3341457,0.00021512,2]
[378168006,1754759630069,2553.6658543,0.00021512,2]
[378168007,1754759640183,5000.0,0.00021512,2]
[378168008,1754759648472,5000.0,0.00021512,2]
[378168009,1754759656354,5000.0,0.00021512,2]
[378168010,1754759661321,724.022363,0.000209,2]
[378168011,1754759661798,608.6105591,0.00020901,2]
[378168012,1754759664383,1113.7012236,0.00021512,2]
[378168013,1754759664404,3886.2987764,0.00021512,2]
[378168014,1754759672167,5000.0,0.00021512,2]
[378168015,1754759680365,1754.84701577,0.00021512,2]
[378168017,1754759688477,5000.0,0.00021512,2]
[378168018,1754759703206,4358.85420783,0.0002145,2]
[378168019,1754759703230,7994.14579217,0.0002145,2]
[378168020,1754759704225,5000.0,0.00021512,2]
[378168021,1754759719983,5000.0,0.00021512,2]
[378168022,1754759735853,2005.85420783,0.00021512,2]
[378168023,1754759735877,2994.14579217,0.00021512,2]
[378168024,1754759751653,5000.0,0.00021512,2]
[378168025,1754759768359,5000.0,0.00021512,2]
[378168026,1754759784680,5000.0,0.00021512,2]
[378168027,1754759797742,2005.85420783,0.000199,2]
[378168028,1754759797769,8326.26048987,0.000199,2]
[378168029,1754759800404,5000.0,0.00021512,2]
[378168030,1754759815471,5000.0,0.00021512,2]
[378168031,1754759831891,1673.73951013,0.00021512,2]
[378168032,1754759831912,3326.26048987,0.00021512,2]
[378168033,1754759843441,294.07533302,0.00021446,2]
[378168034,1754759843893,1982.78596772,0.00019721,2]
[378168035,1754759847337,5000.0,0.00021512,2]
[378168036,1754759863215,5000.0,0.00021512,2]
[378168038,1754759880924,4396.87820939,0.00021512,2]
[378168039,1754759880945,603.12179061,0.00021512,2]
[378168040,1754759891603,666.0,0.00020547,2]
[378168041,1754759896916,5000.0,0.00021512,2]
[378168042,1754759913389,5000.0,0.00021512,2]
[378168043,1754759929208,5000.0,0.00021512,2]
[378168044,1754759945668,3730.87820939,0.00021512,2]
[378168045,1754759945694,1269.12179061,0.00021512,2]
[378168046,1754759961718,5000.0,0.00021512,2]
[378168047,1754759963017,407.744804,0.00020899,2]
[378168048,1754759963352,1181.93875088,0.000209,2]
[378168049,1754759963691,590.96937544,0.00020901,2]
[378168050,1754759976970,5000.0,0.00021512,2]
[378168051,1754759981646,6550.22527907,0.000199,2]
[378168052,1754759981674,3449.78672772,0.000199,2]
[378168053,1754759992930,5000.0,0.00021512,2]
[378168054,1754759998580,226.315746,0.00020547,2]
[378168056,1754760008759,5000.0,0.00021512,2]
[378168057,1754760023986,5000.0,0.00021512,2]
[378168058,1754760024788,679.084197,0.00020547,2]
[378168059,1754760039278,644.81332928,0.00021512,2]
[378168060,1754760039301,4355.18667072,0.00021512,2]
[378168061,1754760056134,5000.0,0.00021512,2]
[378168062,1754760068168,269.2773633,0.00020711,2]
[378168063,1754760071578,5000.0,0.00021512,2]
[378168064,1754760087370,5000.0,0.00021512,2]
[378168065,1754760105082,375.53596598,0.00021512,2]
[378168066,1754760105112,4624.46403402,0.00021512,2]
[378168067,1754760117682,150.0,0.00024715,30]
[378168068,1754760117859,150.0,0.00025892,30]
[378168069,1754760123106,150.0,0.00027069,30]
[378168070,1754760123740,5000.0,0.00021512,2]
[378168071,1754760145119,1321.85731181,0.0001972,2]
[378168072,1754760165595,9053.67865417,0.000199,2]
[378168073,1754760165620,678.57883285,0.000199,2]
[378168074,1754760169046,5000.0,0.00021512,2]
[378168075,1754760185718,5000.0,0.00021512,2]
[378168076,1754760195155,153.0,0.00027534,30]
[378168077,1754760198447,1688.25915715,0.00019178,2]
[378168078,1754760198675,150.0,0.00024519,30]
[378168079,1754760199103,150.0,0.00025686,30]
[378168080,1754760199159,178.1014109,0.00020546,2]
[378168081,1754760199529,150.0,0.00026854,30]
[378168082,1754760200994,5000.0,0.00021512,2]
[378168083,1754760217672,2455.0605991,0.00021512,2]
[378168084,1754760217696,2544.9394009,0.00021512,2]
[378168086,1754760232989,5000.0,0.00021512,2]